Cogmind - Beta 12 @@@ ROGUE MODE // 2024.02.19 @ 02:55:03 Player: ToasterKoishi Result: Destroyed by G-67 Veteran with Field Laser Performance ------------- Evolutions (6) 3000 Regions Visited (19) 3800 Robots Destroyed (124) 620 Value Destroyed (3692) 3692 Prototype IDs (18) 360 Alien Tech Used (2) 400 Bonus (300) 300 TOTAL SCORE: 12172 Bonus ------- Met Zhirov 300 Cogmind --------- Core Integrity 0/1150 Matter 81/300 Energy 100/100 System Corruption 4% Temperature Cool (12) Movement Core (50) Location -4/Extension Parts ------- > --- POWER (1) -------- (None) > --- PROPULSION (6) --- (None) > --- UTILITY (10) ----- Enhanced Optical Array Improved Sensor Array Advanced Signal Interpreter Advanced Terrain Scan Processor 0b10 Decoder Chip [Scout] Experimental Utility Shielding Improved Hacking Suite > --- WEAPON (2) ------- (None) > --- INVENTORY (5) ---- Hardened Heavy Armor Plating Peak State ------------ > --- POWER ------------ Light Fission Core > --- PROPULSION ------- Field Propulsion Drive Field Propulsion Drive Nuclear Pulse Array Field Propulsion Array > --- UTILITY ---------- Medium Storage Unit Advanced Sensor Array Advanced Signal Interpreter Advanced Terrain Scanner Advanced Terrain Scan Processor 0b10 Decoder Chip [Scout] Experimental Utility Shielding Improved Medium Armor Plating Hacking Suite Hacking Suite > --- WEAPON ----------- Powered Hammer Powered Hammer > --- INVENTORY -------- Advanced Sensor Array Advanced Signal Interpreter Improved Terrain Scanner Hardened Heavy Armor Plating Force Field Advanced Hacking Suite Makeshift System Shield [Rating: 95] Favorites ----------- Power Light Nuclear Core Engine Light Ion Engine Power Core Light Nuclear Core Reactor Heavy Antimatter Reactor Propulsion Field Propulsion Drive Treads Armored Treads Leg Improved Aluminum Leg Wheel Armored Wheel Hover Unit Combat Gravmag System Flight Unit Field Propulsion Drive Utility Improved Targeting Computer Device Advanced Sensor Array Storage Large Storage Unit Processor Improved Targeting Computer Hackware Hacking Suite Protection Light Armor Plating Weapon Assault Rifle Energy Gun Particle Gun Ballistic Gun Assault Rifle Ballistic Cannon Improved Light Cannon Launcher Rocket Launcher Impact Weapon Powered Hammer Slashing Weapon Axe Build | -11 -10 -10 -9 -9 -9 -8 -8 -8 -8 -6 -6 -6 -5 -5 -5 -5 -4 -4 -4 ------- Run | Jun Mat Min Mat Min Exi Min Mat Sto Rec Fac Was Fac Fac Upp Upp Zhi Pro Fac Ext Slots Evolved 12 | . . . 2 . . . 2 . . 4 . . 2 . . . . 2 . Power . | . . . . . . . . . . . . . . . . . . . . Propulsion 4 | . . . . . . . 1 . . 1 . . 2 . . . . . . Utility 8 | . . . 2 . . . 1 . . 3 . . . . . . . 2 . Weapon . | . . . . . . . . . . . . . . . . . . . . Parts Attached 174 | 6 11 3 22 4 . 1 40 14 5 5 3 14 18 1 . 9 . 7 11 Power 22 | 1 2 1 4 1 . . 4 2 . . . 1 3 . . 3 . . . Engine 12 | 1 2 1 4 1 . . 2 1 . . . . . . . . . . . Core 9 | . . . . . . . 2 1 . . . 1 3 . . 2 . . . Reactor 1 | . . . . . . . . . . . . . . . . 1 . . . Propulsion 48 | 2 3 1 7 . . . 13 5 2 1 2 3 4 . . 1 . 2 2 Treads 17 | 1 1 . 4 . . . 2 4 2 . 2 1 . . . . . . . Leg 11 | . . . . . . . 10 . . . . . . . . 1 . . . Wheel 10 | 1 2 1 3 . . . 1 1 . 1 . . . . . . . . . Hover 4 | . . . . . . . . . . . . . 1 . . . . 1 2 Flight 6 | . . . . . . . . . . . . 2 3 . . . . 1 . Utility 70 | 1 2 . 6 1 . . 13 5 1 4 . 7 10 1 . 5 . 5 9 Device 20 | . . . . . . . . 1 1 2 . 1 8 1 . 1 . 2 3 Storage 9 | 1 1 . . . . . 2 1 . . . 1 1 . . 2 . . . Processor 13 | . 1 . 2 . . . 4 . . 1 . 2 . . . . . 1 2 Hackware 6 | . . . 1 . . . . . . . . 2 . . . . . 1 2 Protection 22 | . . . 3 1 . . 7 3 . 1 . 1 1 . . 2 . 1 2 Artifact . | . . . . . . . . . . . . . . . . . . . . Weapon 34 | 2 4 1 5 2 . 1 10 2 2 . 1 3 1 . . . . . . Energy Gun 1 | . . . . . . . 1 . . . . . . . . . . . . Energy Cannon . | . . . . . . . . . . . . . . . . . . . . Ballistic Gun 16 | 2 4 1 4 1 . . 4 . . . . . . . . . . . . Ballistic Cannon 4 | . . . 1 . . 1 1 . . . . 1 . . . . . . . Launcher 6 | . . . . 1 . . 2 2 . . 1 . . . . . . . . Special Weapon . | . . . . . . . . . . . . . . . . . . . . Impact Weapon 5 | . . . . . . . 1 . 1 . . 2 1 . . . . . . Slashing Weapon 2 | . . . . . . . 1 . 1 . . . . . . . . . . Piercing Weapon . | . . . . . . . . . . . . . . . . . . . . Special Melee Weapon . | . . . . . . . . . . . . . . . . . . . . Unidentified Prototypes 6 | . . . . . . . . . . . . . . . . 6 . . . Parts Lost 69 | . 3 3 4 1 . 2 10 7 . 1 7 9 1 . . . 1 10 10 Power 7 | . . 1 . . . 1 2 1 . . . 1 . . . . . 1 . Propulsion 19 | . 1 1 . . . . 2 1 . 1 2 2 1 . . . 1 4 3 Utility 28 | . . . 2 1 . . 3 4 . . 3 4 . . . . . 4 7 Weapon 15 | . 2 1 2 . . 1 3 1 . . 2 2 . . . . . 1 . Highest Loss Streak 9 | . 1 1 1 1 . 2 3 3 . 1 5 4 1 . . . 1 9 8 To Critical Strikes . | . . . . . . . . . . . . . . . . . . . . Average Slot Usage (%) 86 | . 96 99 96 100 100 96 84 92 81 78 65 39 85 88 88 86 92 79 61 Engine 5 | . 13 13 11 11 11 8 2 1 9 3 . . . . . . . . . Core 2 | . . . . . . . 4 6 . 1 6 2 4 5 5 4 5 4 . Treads 8 | . 14 14 11 11 11 11 3 18 18 13 6 2 . . . . . . . Leg 3 | . . . . . . . 20 . . 2 6 2 . . . . 5 . . Wheel 6 | . 14 14 10 11 11 11 1 9 9 10 3 . . . . . . . . Hover 1 | . . . . . . . . . . . . . 4 . . . . . 12 Flight 4 | . . . . . . . . . . . . . 18 23 23 23 21 16 . Device 5 | . . . . . . . . 6 9 12 10 5 13 15 17 13 11 14 9 Storage 8 | . 14 14 11 11 11 11 9 9 9 6 3 . 1 5 5 5 5 5 4 Processor 15 | . 10 14 21 22 22 22 19 17 9 6 13 16 12 11 11 11 11 14 15 Hackware 4 | . . . 3 . . . . . . . . 5 11 11 11 11 11 10 18 Protection 4 | . . . 5 11 11 11 7 7 . 6 3 . 3 1 . 1 5 2 . Ballistic Gun 8 | . 27 28 18 14 22 18 8 . . . . 1 . . . . . . . Ballistic Cannon 1 | . . . 2 5 . 3 3 . . . 3 . . . . . . . . Impact Weapon 3 | . . . . . . . . 8 9 6 1 1 8 11 11 11 11 7 . Slashing Weapon 1 | . . . . . . . 1 8 9 6 1 . . . . . . . . Naked Turns . | . . . . . . . . . . . . . . . . . . . . Heaviest Build 79 | 12 29 29 36 32 30 30 58 73 72 77 79 29 32 30 24 26 26 39 12 Greatest Support 47 | 16 20 16 20 12 12 12 47 44 16 25 42 22 33 33 33 33 33 42 30 Greatest Overweight (x) 4 | . 1 2 2 2 2 2 4 4 4 4 4 2 1 . . . . 1 . Average Overweight (x) . | . . 1 1 2 2 2 1 2 3 3 2 . . . . . . . . Largest Inventory Capacity 20 | 8 15 15 15 15 15 15 20 20 20 20 20 20 10 10 10 10 10 10 10 Average Capacity 13 | 7 14 15 15 15 15 15 15 20 20 20 13 5 6 10 10 9 10 10 9 Most Carried 20 | 2 13 13 15 15 15 15 16 20 20 18 20 5 7 7 10 10 10 10 10 Average Carried 12 | 1 8 11 14 14 15 14 13 17 19 17 12 3 5 7 9 9 10 9 5 Final Capacity 20 | 8 15 15 15 15 15 15 20 20 20 20 5 5 10 10 10 10 10 10 5 Final Carried 20 | 2 13 10 15 15 15 15 14 18 20 18 5 5 7 7 10 10 10 10 2 Scrap Engine Consumption 47 | . . . . . . . . . 27 6 4 10 . . . . . . . Constructs Created 7 | . . . . . . . . . . 2 2 3 . . . . . . . Constructs Modified 7 | . . . . . . . . . . 4 3 . . . . . . . . Class Distribution -------------------- 70% | Mutant 14% | Hacker-Scout 8% | Hacker-Ninja 4% | Hacker-Mutant Dominant Class ---------------- Mutant | -10/Materials Mutant | -10/Mines Mutant | -9/Materials Mutant | -9/Mines Mutant | -9/Exiles Mutant | -8/Mines Mutant | -8/Materials Mutant | -8/Storage Mutant | -8/Recycling Mutant | -6/Factory Mutant | -6/Waste Mutant | -6/Factory Hacker-Ninja | -5/Factory Hacker-Ninja | -5/Upper Caves Hacker-Ninja | -5/Upper Caves Hacker-Ninja | -5/Zhirov Hacker-Scout | -4/Proximity Caves Hacker-Scout | -4/Factory Hacker-Scout | -4/Extension Resources | -11 -10 -10 -9 -9 -9 -8 -8 -8 -8 -6 -6 -6 -5 -5 -5 -5 -4 -4 -4 ----------- Run | Jun Mat Min Mat Min Exi Min Mat Sto Rec Fac Was Fac Fac Upp Upp Zhi Pro Fac Ext Matter Collected 3718 | 191 659 157 788 71 . 82 813 280 167 25 . . 433 . 20 . . . 32 Remotely . | . . . . . . . . . . . . . . . . . . . . Salvage Created 4006 | 19 533 232 923 61 . 40 729 942 266 174 . 87 . . . . . . . Parts 249 | 1 35 9 73 3 . 2 51 50 16 6 . 3 . . . . . . . Haulers Intercepted . | . . . . . . . . . . . . . . . . . . . . Recyclers Shooed 1 | . . . 1 . . . . . . . . . . . . . . . . Parts Field Recycled . | . . . . . . . . . . . . . . . . . . . . Retrieved Matter . | . . . . . . . . . . . . . . . . . . . . Parts Self-Destructed 5 | . . . . . . . . . . . . . . . 5 . . . . Prevented . | . . . . . . . . . . . . . . . . . . . . Kills | -11 -10 -10 -9 -9 -9 -8 -8 -8 -8 -6 -6 -6 -5 -5 -5 -5 -4 -4 -4 ------- Run | Jun Mat Min Mat Min Exi Min Mat Sto Rec Fac Was Fac Fac Upp Upp Zhi Pro Fac Ext Combat Hostiles Destroyed 109 | . 14 7 26 4 . 1 26 24 3 3 . 1 . . . . . . . Melee 21 | . . . . . . . . 15 3 3 . . . . . . . . . Guns 64 | . 14 7 20 4 . 1 17 . . . . 1 . . . . . . . Cannons 10 | . . . 6 . . . 4 . . . . . . . . . . . . AOE 11 | . . . . . . . 4 7 . . . . . . . . . . . Classes Destroyed 12 | 1 5 . 3 . . 1 . 2 . . . . . . . . . . . Worker 1 | . 1 . . . . . . . . . . . . . . . . . . Builder 2 | . 2 . . . . . . . . . . . . . . . . . . Tunneler 3 | 1 . . . . . 1 . . . . . 1 . . . . . . . Recycler 2 | . 1 . 1 . . . . . . . . . . . . . . . . Mechanic 1 | . . . . . . . . 1 . . . . . . . . . . . Operator 1 | . . . 1 . . . . . . . . . . . . . . . . Watcher 5 | . . . 3 . . . 1 1 . . . . . . . . . . . Swarmer 38 | . 6 3 10 4 . . 11 4 . . . . . . . . . . . Grunt 46 | . 8 4 10 . . . 11 10 . 3 . . . . . . . . . Protector 1 | . . . . . . . . 1 . . . . . . . . . . . Sentry 21 | . . . 6 . . . 4 8 3 . . . . . . . . . . Hunter 3 | . . . . . . 1 . 1 . . . 1 . . . . . . . Best Kill Streak 8 | 1 3 3 4 4 . 1 4 8 1 2 . 1 . . . . . . . Combat Bots Only 7 | . 3 3 4 4 . 1 4 7 1 2 . 1 . . . . . . . Max Kills in Single Turn 6 | 1 1 1 1 1 . 1 3 6 1 1 . 1 . . . . . . . Gunslinging . | . . . . . . . . . . . . . . . . . . . . Exploded 6 | . . . . . . . 3 6 . . . . . . . . . . . Melee 1 | . . . . . . . . 1 1 1 . . . . . . . . . Uniques/NPCs Destroyed . | . . . . . . . . . . . . . . . . . . . . Combat | -11 -10 -10 -9 -9 -9 -8 -8 -8 -8 -6 -6 -6 -5 -5 -5 -5 -4 -4 -4 -------- Run | Jun Mat Min Mat Min Exi Min Mat Sto Rec Fac Was Fac Fac Upp Upp Zhi Pro Fac Ext Damage Taken 12864 | . 590 304 1253 84 . 244 2613 1861 138 194 1355 1220 587 . . . 234 1088 1099 Core 2922 | . 84 25 216 7 . 32 324 207 . 22 400 275 127 . . . 48 422 733 Absorbed by Shields 256 | . . . . . . . . . . 20 . 104 . . . . . 128 4 Redirected to Shielding 2 | . . . . . . . . . . . . . . . . . . . 2 Regen/Repaired (Parts) 771 | . . . 150 . . . . 526 35 . 40 . 20 . . . . . . Core Remaining (%) 47 | 100 . 56 . . . 36 . . 3 . . 18 . . . . 74 . . Volleys Fired 338 | 4 54 25 98 7 . 12 120 3 . . 5 10 . . . . . . . Largest 2 | 2 2 2 2 2 . 2 2 2 . . 2 2 . . . . . . . Hottest 106 | 40 40 40 59 40 . 59 100 66 . . 106 79 . . . . . . . Shots Fired 619 | 8 107 50 184 14 . 24 201 6 . . 7 18 . . . . . . . Gun 494 | 8 107 50 151 14 . 13 143 . . . . 8 . . . . . . . Cannon 114 | . . . 33 . . 11 55 . . . 5 10 . . . . . . . Launcher 11 | . . . . . . . 3 6 . . 2 . . . . . . . . Special . | . . . . . . . . . . . . . . . . . . . . Kinetic 590 | 8 107 50 184 14 . 24 191 . . . 2 10 . . . . . . . Thermal 18 | . . . . . . . 7 . . . 3 8 . . . . . . . Explosive 11 | . . . . . . . 3 6 . . 2 . . . . . . . . Electromagnetic . | . . . . . . . . . . . . . . . . . . . . Robot Hit Streak 32 | 2 11 19 12 7 . 5 32 1 . . 5 3 . . . . . . . Robot Miss Streak 5 | 1 5 3 5 2 . 1 2 1 . . 1 3 . . . . . . . Penetration Max . | . . . . . . . . . . . . . . . . . . . . Secondary Targets 1 | . . . 1 . . . . . . . . . . . . . . . . Max Gunslinging Chain 1 | . . . 1 . . . . . . . . . . . . . . . . Shots Hit Robots 489 | 4 68 36 113 9 . 17 164 46 7 9 5 10 1 . . . . . . Core Hits 206 | 1 25 13 52 4 . 5 54 38 4 6 . 4 . . . . . . . Critical Kills 2 | . . . 1 . . . . 1 . . . . . . . . . . . Critical Parts Destroyed 7 | . 1 . 1 . . . 2 3 . . . . . . . . . . . Critical Strikes 16 | . 1 . 2 . . 1 3 8 . 1 . . . . . . . . . Destroy 5 | . 1 . 2 . . . 2 . . . . . . . . . . . . Blast 2 | . . . . . . 1 1 . . . . . . . . . . . . Smash 4 | . . . . . . . . 4 . . . . . . . . . . . Sever 5 | . . . . . . . . 4 . 1 . . . . . . . . . Melee Attacks 197 | . . . . . . . 2 68 10 13 . 1 73 5 . . 7 18 . Impact 133 | . . . . . . . . 22 2 5 . 1 73 5 . . 7 18 . Slashing 64 | . . . . . . . 2 46 8 8 . . . . . . . . . Piercing . | . . . . . . . . . . . . . . . . . . . . Sneak Attacks 2 | . . . . . . . . . 1 . . 1 . . . . . . . Combat Hostiles 1 | . . . . . . . . . 1 . . . . . . . . . . Follow-up Attacks 8 | . . . . . . . . 5 . 3 . . . . . . . . . Damage Inflicted 9598 | 63 875 461 1642 112 . 214 2410 2612 322 355 189 284 42 . . . . . 17 Guns 4243 | 63 875 461 1159 112 . 100 1381 . . . . 92 . . . . . . . Cannons 1596 | . . . 483 . . 114 836 . . . 75 88 . . . . . . . Explosions 1182 | . . . . . . . 193 877 . . 112 . . . . . . . . Melee 2558 | . . . . . . . . 1735 322 355 . 104 42 . . . . . . Ramming 19 | . . . . . . . . . . . 2 . . . . . . . 17 Kinetic 5598 | 63 875 461 1642 112 . 214 2109 . . . 34 88 . . . . . . . Thermal 241 | . . . . . . . 108 . . . 41 92 . . . . . . . Explosive 1182 | . . . . . . . 193 877 . . 112 . . . . . . . . Electromagnetic . | . . . . . . . . . . . . . . . . . . . . Impact 743 | . . . . . . . . 461 . 136 . 104 42 . . . . . . Slashing 1815 | . . . . . . . . 1274 322 219 . . . . . . . . . Piercing . | . . . . . . . . . . . . . . . . . . . . Highest Corruption 10 | . . . . . . . . 3 3 . . . 10 10 10 10 10 4 4 Average Corruption 5 | . . . . . . . . 2 3 . . . 4 10 10 10 10 3 4 Corruption Purged . | . . . . . . . . . . . . . . . . . . . . Corruption Blocked 12 | . . . . . . . . . . . . . 12 . . . . . . Effects 86 | . . . . . . . . 2 16 . . . 14 12 10 4 10 1 17 Message Errors 26 | . . . . . . . . . 8 . . . 5 4 1 1 3 . 4 Matter Fused 22 | . . . . . . . . 1 4 . . . 3 3 3 1 3 1 3 Heat Flow Errors 12 | . . . . . . . . . 1 . . . 2 1 2 1 . . 5 Energy Discharges 11 | . . . . . . . . . 1 . . . 3 1 2 . 1 . 3 Parts Fused 1 | . . . . . . . . . . . . . . . 1 . . . . Data Loss (minor) 12 | . . . . . . . . 1 1 . . . 1 3 1 1 3 . 1 Data Loss (major) 1 | . . . . . . . . . 1 . . . . . . . . . . Alerts 1 | . . . . . . . . . . . . . . . . . . . 1 Overload Shots . | . . . . . . . . . . . . . . . . . . . . Overflow Damage 275 | . . . 1 . . . 22 188 . . . 64 . . . . . . . Projectiles 11 | . . . 1 . . . 10 . . . . . . . . . . . . Explosions 12 | . . . . . . . 12 . . . . . . . . . . . . Melee 252 | . . . . . . . . 188 . . . 64 . . . . . . . Knockbacks 19 | . . . 3 . . . 12 3 . . . 1 . . . . . . . Impact 4 | . . . . . . . . 3 . . . 1 . . . . . . . Kinetic 12 | . . . 3 . . . 9 . . . . . . . . . . . . Secondary 3 | . . . . . . . 3 . . . . . . . . . . . . Self-Inflicted Damage 38 | . . . . . . . . 18 . . 14 . . . . . . . 6 Shots 2 | . . . . . . . . 1 . . 1 . . . . . . . . Rammed 8 | . . . . . . . . . . . . . . . . . . . 8 Targets Rammed 9 | . . . . . . . . . . . 1 . . . . . . . 8 Kicked 1 | . . . . . . . . . . . 1 . . . . . . . . Crushed . | . . . . . . . . . . . . . . . . . . . . Highest Temperature 381 | 6 5 2 132 . . . 381 33 213 13 92 8 256 151 161 286 . . 246 Average Temperature 65 | 6 3 2 50 . . . 56 15 101 13 48 3 125 79 82 143 . . 103 Received Heat Transfer 3107 | . 204 126 468 . . . 1332 549 63 107 . 9 30 . . . 21 30 168 Effects 3 | . . . . . . . 2 . . . . . 1 . . . . . . Energy Bleed 1 | . . . . . . . . . . . . . 1 . . . . . . Short Circuit 2 | . . . . . . . 2 . . . . . . . . . . . . Siege Activations . | . . . . . . . . . . . . . . . . . . . . Robots Corrupted . | . . . . . . . . . . . . . . . . . . . . Combat Hostiles . | . . . . . . . . . . . . . . . . . . . . Parts Fried 3 | . . . . . . . 1 . . . . 2 . . . . . . . Impact Corruptions 11 | . . . . . . . 1 8 . . . 2 . . . . . . . Robots Melted . | . . . . . . . . . . . . . . . . . . . . Combat Hostiles . | . . . . . . . . . . . . . . . . . . . . Parts Melted 1 | . . . . . . . . . . 1 . . . . . . . . . Heat Transferred 518 | . . . . . . . 259 . . . 74 185 . . . . . . . Parts Sabotaged . | . . . . . . . . . . . . . . . . . . . . Parts Stolen . | . . . . . . . . . . . . . . . . . . . . Parts Stripped . | . . . . . . . . . . . . . . . . . . . . Power Chain Reactions . | . . . . . . . . . . . . . . . . . . . . Missiles Intercepted . | . . . . . . . . . . . . . . . . . . . . Alert | -11 -10 -10 -9 -9 -9 -8 -8 -8 -8 -6 -6 -6 -5 -5 -5 -5 -4 -4 -4 ------- Run | Jun Mat Min Mat Min Exi Min Mat Sto Rec Fac Was Fac Fac Upp Upp Zhi Pro Fac Ext Peak Influence 535 | 5 203 267 375 225 . 30 225 223 154 360 134 44 270 . . . . 535 150 Initial 500 | . 3 7 26 145 . . 11 46 84 271 126 44 9 . . . . 500 107 Average 112 | . 49 97 142 167 . 6 112 90 59 326 106 24 99 . . . . 378 35 Maximum Alert Level 2 | . 1 1 1 1 . . 1 1 . 1 . . 1 . . . . 2 . Low Security (%) 84 | 100 97 93 72 72 . 100 97 94 100 . 100 100 90 . . . . . 100 Level 1 13 | . 2 6 27 27 . . 2 5 . 100 . . 9 . . . . 69 . Level 2 1 | . . . . . . . . . . . . . . . . . . 29 . Level 3 . | . . . . . . . . . . . . . . . . . . . . Level 4 . | . . . . . . . . . . . . . . . . . . . . Level 5 . | . . . . . . . . . . . . . . . . . . . . High Security . | . . . . . . . . . . . . . . . . . . . . Max Security . | . . . . . . . . . . . . . . . . . . . . Squads Dispatched 34 | . 4 . 3 . . . 3 6 . . . . 11 . . . . 5 2 Investigation 6 | . 2 . . . . . . 2 . . . . 1 . . . . . 1 Extermination 4 | . . . . . . . . . . . . . 2 . . . . 2 . Reinforcement 21 | . 2 . 3 . . . 3 1 . . . . 8 . . . . 3 1 Assault 2 | . . . . . . . . 2 . . . . . . . . . . . Garrison 1 | . . . . . . . . 1 . . . . . . . . . . . Intercept . | . . . . . . . . . . . . . . . . . . . . Searches Triggered 1 | . . . . . . . . . . . . . . . . . . 1 . Construction Impeded 1 | . . . . . . . . 1 . . . . . . . . . . . Haulers Reinforced . | . . . . . . . . . . . . . . . . . . . . Active Scanning Responses . | . . . . . . . . . . . . . . . . . . . . Cargo Convoy Interrupts 1 | . . . . . . . . . . . . . 1 . . . . . . Stealth | -11 -10 -10 -9 -9 -9 -8 -8 -8 -8 -6 -6 -6 -5 -5 -5 -5 -4 -4 -4 --------- Run | Jun Mat Min Mat Min Exi Min Mat Sto Rec Fac Was Fac Fac Upp Upp Zhi Pro Fac Ext Distress Signals 15 | . 3 . 1 . . . 5 1 . . . . 1 . . . . 3 1 Communications Jammed . | . . . . . . . . . . . . . . . . . . . . Distress Signals . | . . . . . . . . . . . . . . . . . . . . Times Spotted 272 | . 31 11 43 4 . 1 43 33 3 4 6 5 29 7 . . 14 16 22 Peak Tracking Total 12 | . 6 3 4 4 . 1 5 9 2 3 6 2 9 8 . . 7 9 12 Tactical Retreats 37 | . 2 3 3 . . . 3 3 . 1 . 2 7 1 . . 2 6 4 Traps | -11 -10 -10 -9 -9 -9 -8 -8 -8 -8 -6 -6 -6 -5 -5 -5 -5 -4 -4 -4 ------- Run | Jun Mat Min Mat Min Exi Min Mat Sto Rec Fac Was Fac Fac Upp Upp Zhi Pro Fac Ext Traps Triggered 15 | . 6 . 1 . . . . 2 . 1 . 1 1 . . . . . 3 Indirectly . | . . . . . . . . . . . . . . . . . . . . Trap Hack Attempts . | . . . . . . . . . . . . . . . . . . . . Triggered . | . . . . . . . . . . . . . . . . . . . . Disarmed . | . . . . . . . . . . . . . . . . . . . . Reprogrammed . | . . . . . . . . . . . . . . . . . . . . Reused . | . . . . . . . . . . . . . . . . . . . . Traps Extracted . | . . . . . . . . . . . . . . . . . . . . Installed . | . . . . . . . . . . . . . . . . . . . . Triggered 1 | . . . . . . . . . . . . . 1 . . . . . . Machines | -11 -10 -10 -9 -9 -9 -8 -8 -8 -8 -6 -6 -6 -5 -5 -5 -5 -4 -4 -4 ---------- Run | Jun Mat Min Mat Min Exi Min Mat Sto Rec Fac Was Fac Fac Upp Upp Zhi Pro Fac Ext Machines Disabled 2 | . . . . . . . . 1 . . . 1 . . . . . . . Max in Single Turn 1 | . . . . . . . . 1 . . . 1 . . . . . . . Garrison Access 2 | . . . . . . . . . . . . . 2 . . . . . . Machines Repaired . | . . . . . . . . . . . . . . . . . . . . Machines Sabotaged . | . . . . . . . . . . . . . . . . . . . . Overloaded Fab Kills . | . . . . . . . . . . . . . . . . . . . . Hacking | -11 -10 -10 -9 -9 -9 -8 -8 -8 -8 -6 -6 -6 -5 -5 -5 -5 -4 -4 -4 --------- Run | Jun Mat Min Mat Min Exi Min Mat Sto Rec Fac Was Fac Fac Upp Upp Zhi Pro Fac Ext Machines Accessed 86 | . 4 . 9 . 2 . 9 11 11 1 . . 13 . 2 9 . 7 8 Terminals 52 | . 4 . 5 . . . 6 9 6 1 . . 8 . . . . 5 8 Fabricators . | . . . . . . . . . . . . . . . . . . . . Repair Stations 7 | . . . 1 . . . 1 2 . . . . 2 . . . . 1 . Recycling Units 6 | . . . 1 . . . . . 5 . . . . . . . . . . Scanalyzers 5 | . . . 2 . . . 1 . . . . . 1 . . . . 1 . Garrison Access 3 | . . . . . . . 1 . . . . . 2 . . . . . . Total Hacks 246 | . 9 . 22 . 24 . 24 28 19 2 . . 29 . 8 48 . 13 20 Successful 138 | . 1 . 12 . 24 . 7 6 7 1 . . 15 . 8 48 . 5 4 Failed 108 | . 8 . 10 . . . 17 22 12 1 . . 14 . . . . 8 16 Catastrophic 25 | . 2 . 1 . . . 4 6 4 . . . 5 . . . . . 3 Database Lockouts . | . . . . . . . . . . . . . . . . . . . . Manual 81 | . 8 . 5 . . . 14 11 16 . . . 12 . . . . 5 10 Terminals 114 | . 9 . 8 . . . 15 22 11 2 . . 18 . . . . 9 20 Fabricators . | . . . . . . . . . . . . . . . . . . . . Repair Stations 20 | . . . 5 . . . 2 6 . . . . 5 . . . . 2 . Recycling Units 10 | . . . 2 . . . . . 8 . . . . . . . . . . Scanalyzers 18 | . . . 7 . . . 6 . . . . . 3 . . . . 2 . Garrison Access 4 | . . . . . . . 1 . . . . . 3 . . . . . . Terminal Hacks 104 | . 1 . 2 . 24 . 2 2 3 1 . . 6 . 8 48 . 4 3 Record 70 | . . . . . 24 . . . . . . . 2 . 7 36 . 1 . Part Schematic 5 | . . . . . . . . . . . . . 1 . . 4 . . . Robot Analysis 6 | . . . 1 . . . . . 1 . . . . . . 4 . . . Prototype ID Bank 4 | . . . . . . . . . . . . . . . . 4 . . . Open Door 4 | . . . . . . . . . . . . . . . 1 . . 1 2 Branch Access Points 1 | . . . . . . . . . . . . . 1 . . . . . . Machine Index 1 | . . . . . . . . . . . . . 1 . . . . . . Terminal Index 1 | . . . . . . . . . . . . . . . . . . 1 . Alert Level 1 | . . . . . . . . . . . . . . . . . . 1 . Unreport Threat 6 | . 1 . . . . . 2 1 1 . . . . . . . . . 1 Recall Investigation 1 | . . . . . . . . 1 . . . . . . . . . . . Recall Reinforcements 1 | . . . . . . . . . . . . . 1 . . . . . . Zone Layout 3 | . . . 1 . . . . . 1 1 . . . . . . . . . Fabricator Hacks . | . . . . . . . . . . . . . . . . . . . . Repair Station Hacks 13 | . . . 4 . . . . 4 . . . . 4 . . . . 1 . Scan Component 7 | . . . 2 . . . . 2 . . . . 2 . . . . 1 . Repair 6 | . . . 2 . . . . 2 . . . . 2 . . . . . . Recycling Unit Hacks . | . . . . . . . . . . . . . . . . . . . . Scanalyzer 13 | . . . 6 . . . 5 . . . . . 2 . . . . . . Insert Component 5 | . . . 2 . . . 2 . . . . . 1 . . . . . . Analyze 8 | . . . 4 . . . 3 . . . . . 1 . . . . . . Garrison Access Hacks 2 | . . . . . . . . . . . . . 2 . . . . . . Seal Access 2 | . . . . . . . . . . . . . 2 . . . . . . Unauthorized Hacks 6 | . . . . . . . . . 4 . . . 1 . . . . . 1 Terminals 2 | . . . . . . . . . . . . . 1 . . . . . 1 Assimilate 2 | . . . . . . . . . . . . . 1 . . . . . 1 Fabricators . | . . . . . . . . . . . . . . . . . . . . Repair Stations . | . . . . . . . . . . . . . . . . . . . . Recycling Units 4 | . . . . . . . . . 4 . . . . . . . . . . Tunnel 4 | . . . . . . . . . 4 . . . . . . . . . . Scanalyzers . | . . . . . . . . . . . . . . . . . . . . Garrison Access . | . . . . . . . . . . . . . . . . . . . . Data Cores Recovered 2 | . . . 1 . . . . . . . . . . . . . . . 1 Used . | . . . . . . . . . . . . . . . . . . . . Hacking Detections 60 | . 4 . 8 . . . 8 11 7 1 . . 9 . . . . 6 6 Full Trace Events 4 | . . . . . . . . 1 1 . . . 1 . . . . . 1 Feedback Events . | . . . . . . . . . . . . . . . . . . . . Feedback Blocked . | . . . . . . . . . . . . . . . . . . . . Robot Schematics Acquired . | . . . . . . . . . . . . . . . . . . . . Robots Built . | . . . . . . . . . . . . . . . . . . . . Authchips . | . . . . . . . . . . . . . . . . . . . . Time . | . . . . . . . . . . . . . . . . . . . . Total Robot Build Rating . | . . . . . . . . . . . . . . . . . . . . Part Schematics Acquired 10 | . . . 2 . . . 2 . . . . . 2 . . 4 . . . Parts Built . | . . . . . . . . . . . . . . . . . . . . Authchips . | . . . . . . . . . . . . . . . . . . . . Time . | . . . . . . . . . . . . . . . . . . . . Total Part Build Rating . | . . . . . . . . . . . . . . . . . . . . Parts Repaired 6 | . . . 2 . . . . 2 . . . . 2 . . . . . . Time 229 | . . . 58 . . . . 76 . . . . 95 . . . . . . Parts Recycled . | . . . . . . . . . . . . . . . . . . . . Recycled Matter . | . . . . . . . . . . . . . . . . . . . . Retrieved Matter . | . . . . . . . . . . . . . . . . . . . . Retrieved Components . | . . . . . . . . . . . . . . . . . . . . Parts Scanalyzed 5 | . . . 2 . . . 2 . . . . . 1 . . . . . . Part Schematics Acquired 5 | . . . 2 . . . 2 . . . . . 1 . . . . . . Parts Damaged 1 | . . . . . . . . . . . . . 1 . . . . . . Bothacking | -11 -10 -10 -9 -9 -9 -8 -8 -8 -8 -6 -6 -6 -5 -5 -5 -5 -4 -4 -4 ------------ Run | Jun Mat Min Mat Min Exi Min Mat Sto Rec Fac Was Fac Fac Upp Upp Zhi Pro Fac Ext Used RIF Installer . | . . . . . . . . . . . . . . . . . . . . Robots Hacked . | . . . . . . . . . . . . . . . . . . . . Non-combat . | . . . . . . . . . . . . . . . . . . . . Combat . | . . . . . . . . . . . . . . . . . . . . Robot Hacks Applied . | . . . . . . . . . . . . . . . . . . . . Relay Couplers Released 3 | . . . . . . . . . . . . . . . . . . 3 . Programmers 3 | . . . . . . . . . . . . . . . . . . 3 . Fabnet Peak Effective % . | . . . . . . . . . . . . . . . . . . . . Robots Rewired . | . . . . . . . . . . . . . . . . . . . . Allies Hacked . | . . . . . . . . . . . . . . . . . . . . Hacks Repelled . | . . . . . . . . . . . . . . . . . . . . Allies | -11 -10 -10 -9 -9 -9 -8 -8 -8 -8 -6 -6 -6 -5 -5 -5 -5 -4 -4 -4 -------- Run | Jun Mat Min Mat Min Exi Min Mat Sto Rec Fac Was Fac Fac Upp Upp Zhi Pro Fac Ext Total Allies 4 | . . . . . . . . 2 . . . . . . . . . . 2 Largest Group 2 | . . . . . . . . 2 . . . . . . . . . . 2 Highest-Rated Group 84 | . . . . . . . . 62 . . . . . . . . . . 84 Highest-Rated Ally 46 | . . . . . . . . 31 . . . . . . . . . . 46 Total Orders . | . . . . . . . . . . . . . . . . . . . . Ally Attacks 14 | . . . . . . . . 10 . . . . . . . . . . 4 Total Damage 339 | . . . . . . . . 164 . . . . . . . . . . 175 Kills 1 | . . . . . . . . . . . . . . . . . . . 1 Allies Corrupted . | . . . . . . . . . . . . . . . . . . . . Allies Melted . | . . . . . . . . . . . . . . . . . . . . Intel | -11 -10 -10 -9 -9 -9 -8 -8 -8 -8 -6 -6 -6 -5 -5 -5 -5 -4 -4 -4 ------- Run | Jun Mat Min Mat Min Exi Min Mat Sto Rec Fac Was Fac Fac Upp Upp Zhi Pro Fac Ext Robot Analysis Total 6 | . . . 1 . . . . . 1 . . . . . . 4 . . . Derelict Logs Recovered 5 | . . 2 . . . . . . . . . . . . 1 . 2 . . Drone Launches . | . . . . . . . . . . . . . . . . . . . . Drone Recoveries . | . . . . . . . . . . . . . . . . . . . . Decoded 0b10 Intel 15 | . . . . . . . . . . . . . . . . . . 3 12 Traps 12 | . . . . . . . . . . . . . . . . . . . 12 Garrisons 1 | . . . . . . . . . . . . . . . . . . 1 . Exits 2 | . . . . . . . . . . . . . . . . . . 2 . Exploration | -11 -10 -10 -9 -9 -9 -8 -8 -8 -8 -6 -6 -6 -5 -5 -5 -5 -4 -4 -4 ------------- Run | Jun Mat Min Mat Min Exi Min Mat Sto Rec Fac Was Fac Fac Upp Upp Zhi Pro Fac Ext Turns Passed 15107 | 71 1087 670 1901 250 335 550 2204 1554 1166 336 283 443 1498 362 305 127 240 858 867 Spaces Moved 13348 | 51 727 510 1131 180 280 427 1096 591 746 169 164 529 2374 705 611 278 463 1364 952 Core 305 | 4 . . . . . . . . . . . 301 . . . . . . . Treads 446 | . 25 . 64 . . . . 262 . . 1 94 . . . . . . . Legs 928 | . . . . . . . 806 . . . 78 44 . . . . . . . Wheels 4832 | 47 702 510 1067 180 280 427 290 329 746 169 85 . . . . . . . . Hover 1075 | . . . . . . . . . . . . . 88 . . . . 35 952 Flight 5762 | . . . . . . . . . . . . 90 2286 705 611 278 463 1329 . Fastest Speed 33 | 50 100 110 110 120 120 120 120 150 145 160 107 40 33 33 33 33 43 33 55 Average Speed 85 | 96 119 112 126 120 120 120 151 185 145 175 159 71 36 33 33 34 43 38 58 Slowest Speed 447 | 100 240 115 240 120 120 120 200 250 160 201 447 225 150 33 33 43 47 117 70 Overloaded Moves . | . . . . . . . . . . . . . . . . . . . . Propulsion Burnouts . | . . . . . . . . . . . . . . . . . . . . Robots Hopped 14 | . . . . . . . . . . . . . 8 . . . . 6 . Cave-ins Triggered . | . . . . . . . . . . . . . . . . . . . . Teleports 1 | . . . . . . . . . . . . . . . . 1 . . . Exploration Rate (%) 60 | 3 99 98 90 34 73 79 61 83 99 5 95 15 31 73 64 62 65 15 67 Regions Visited 19 Branch Regions 11 Pre-discovered Areas 10 | . . . . . 1 . . . 4 . . . . . 1 3 1 . . Known Exits Taken 10 | . . . 1 . . 1 1 . . . . 1 1 1 1 1 1 1 . Unknown Exits Taken 7 | 1 1 1 . 1 1 . . 1 1 . . . . . . . . . . Scrap Searched 6 | . . 1 . 1 . 1 . . . . . . . 1 1 . 1 . . Spaces Dug 101 | . . . . . . . 2 7 . . . . 65 4 . . 5 18 . Terrain Destroyed 191 | . . . . . . . 28 56 . . 11 4 65 4 . . 5 18 . Melee 101 | . . . . . . . 2 7 . . . . 65 4 . . 5 18 . Projectile 4 | . . . . . . . . . . . . 4 . . . . . . . AOE 86 | . . . . . . . 26 49 . . 11 . . . . . . . . Terrain Rammed . | . . . . . . . . . . . . . . . . . . . . Walls Destroyed . | . . . . . . . . . . . . . . . . . . . . Machines Disabled . | . . . . . . . . . . . . . . . . . . . . Actions | -11 -10 -10 -9 -9 -9 -8 -8 -8 -8 -6 -6 -6 -5 -5 -5 -5 -4 -4 -4 --------- Run | Jun Mat Min Mat Min Exi Min Mat Sto Rec Fac Was Fac Fac Upp Upp Zhi Pro Fac Ext Total 16059 | 62 837 556 1420 199 279 440 1459 934 815 193 179 572 2859 825 713 309 489 1660 1259 Wait 1824 | . 31 19 134 7 . . 154 254 50 8 1 7 395 116 100 . 21 272 255 Move 13303 | 50 726 509 1130 179 279 426 1095 590 745 169 163 528 2357 704 610 277 462 1352 952 Hop 13 | . . . . . . . . . . . . . 8 . . . . 5 . Pick Up 94 | 2 13 . 16 1 . 1 20 10 3 1 2 5 6 . 3 9 . 2 . Fast Attach 72 | 6 4 . 10 . . . 14 3 1 1 . 10 11 . . 6 . 2 4 Attach 58 | . 4 3 5 1 . 1 15 3 3 4 3 4 1 . . 2 . 2 7 Detach 13 | . . . . . . . 2 1 2 2 2 2 . . . . . 2 . Swap 46 | . 3 . 7 3 . . 11 8 1 . . . 6 1 . 3 . 3 . Drop 82 | . 2 . 20 1 . . 26 5 2 . 2 5 5 . . 12 . 2 . Fire 338 | 4 54 25 98 7 . 12 120 3 . . 5 10 . . . . . . . Melee 174 | . . . . . . . 2 57 8 8 . 1 70 4 . . 6 18 . Ram 8 | . . . . . . . . . . . . . . . . . . . 8 Kick 1 | . . . . . . . . . . . 1 . . . . . . . . Crush . | . . . . . . . . . . . . . . . . . . . . Escape Stasis 33 | . . . . . . . . . . . . . . . . . . . 33 Rewire . | . . . . . . . . . . . . . . . . . . . . Trap . | . . . . . . . . . . . . . . . . . . . . Miscellaneous . | . . . . . . . . . . . . . . . . . . . . Route ------- -11/Junkyard -10/Materials (discovered 4 exits: *Mat x3 / [*Min]) -10/Mines (discovered 2 exits: *Mat x2) -9/Materials (discovered 4 exits: *Mat x2 / *Min x2) -9/Mines -9/Exiles (discovered 2 exits: [*Min x2]) -8/Mines (discovered 2 exits: *Mat x2) -8/Materials (discovered 2 exits: *Fac / *Sto) -8/Storage -8/Recycling -6/Factory -6/Waste -6/Factory -5/Factory (discovered 3 exits: *Fac / *Upp x2) -5/Upper Caves -5/Upper Caves (discovered 2 exits: *Fac / *Zhi) -5/Zhirov -4/Proximity Caves -4/Factory (discovered 3 exits: Res / *Ext / Arm) -4/Extension History --------- Turn | Location | Event 23 | -11/Junkyard | Discovered new exit (range 15) 72 | -11/Junkyard | Entered Materials 210 | -10/Materials | Discovered new exit (range 15) 303 | -10/Materials | Build established: Mutant 530 | -10/Materials | Discovered new exit (range 6) 614 | -10/Materials | Discovered new exit (range 5) 912 | -10/Materials | Discovered new exit (range 16) 1159 | -10/Materials | Entered Mines 1343 | -10/Mines | Discovered new exit (range 5) 1385 | -10/Mines | Discovered new exit (range 8) 1435 | -10/Mines | Learned Materials security intel 1670 | -10/Mines | Learned 4 Materials zone layouts 1829 | -10/Mines | Entered Materials 1829 | -9/Materials | Evolved 2 slots: Utility x2 1830 | -9/Materials | Identified exit to Mines 1830 | -9/Materials | Identified exit to Materials 2303 | -9/Materials | Discovered exit to Mines (range 10) 3055 | -9/Materials | Discovered exit to Materials (range 13) 3453 | -9/Materials | Repaired Lgt. Armor Plating 3570 | -9/Materials | Core integrity fell below 50% 3719 | -9/Materials | Repaired Arm. Wheel 3730 | -9/Materials | Entered Mines 3745 | -9/Mines | Found a damaged Exp. Sensor Array with a note attached 3824 | -9/Mines | Assembled infested the area 3975 | -9/Mines | Deemed a non-threat by the Exiles lab entrance 3975 | -9/Mines | Discovered new exit (range 5) 3980 | -9/Mines | Entered Exiles 3998 | -9/Exiles | Discovered new exit (range 15) 4014 | -9/Exiles | Met 8R-AWN 4034 | -9/Exiles | Met EX-HEX 4108 | -9/Exiles | Met EX-BIN 4146 | -9/Exiles | Met EX-DEC 4151 | -9/Exiles | Learned location of Zion (-6) 4200 | -9/Exiles | Visited The Gauntlet 4303 | -9/Exiles | Discovered new exit (range 11) 4315 | -9/Exiles | Entered Mines 4458 | -8/Mines | Discovered exit to Materials (range 7) 4617 | -8/Mines | Discovered exit to Materials (range 11) 4865 | -8/Mines | Entered Materials 4865 | -8/Materials | Evolved 2 slots: Propulsion x1, Utility x1 5676 | -8/Materials | Discovered new exit (range 11) 5833 | -8/Materials | Lost 3 parts (1u2w) 5896 | -8/Materials | Discovered new exit (range 13) 6396 | -8/Materials | Core integrity fell below 50% 6428 | -8/Materials | Lost 3 parts (1n2u) 6889 | -8/Materials | Identified exit to Factory 6932 | -8/Materials | Identified exit to Storage 7069 | -8/Materials | Entered Storage 7583 | -8/Storage | Lost 3 parts (1p2u) 7655 | -8/Storage | Core integrity fell below 20% 8214 | -8/Storage | Repaired Hvy. Armor Plating 8253 | -8/Storage | Repaired Hvy. Armor Plating 8495 | -8/Storage | Met a pair of Derelict thieves 8530 | -8/Storage | Garrison activated, responded to threat 8554 | -8/Storage | Destroyed 7 combat bots 8578 | -8/Storage | Lost 3 parts (1n1u1w) 8617 | -8/Storage | Used back door to open Recycling access 8617 | -8/Storage | Discovered new exit (range 5) 8623 | -8/Storage | Entered Recycling 8642 | -8/Recycling | Found Scrap Engine 9517 | -8/Recycling | Discovered new exit (range 12) 9789 | -8/Recycling | Entered Factory 9789 | -6/Factory | Evolved 4 slots: Propulsion x1, Utility x3 10125 | -6/Factory | Sucked down chute 10125 | -6/Factory | Entered Waste 10165 | -6/Waste | Spotted C-40 Crusher 10214 | -6/Waste | Spotted C-40 Crusher 10220 | -6/Waste | Spotted C-40 Crusher 10243 | -6/Waste | Crushed by Compactor (0 parts destroyed, 2 dropped) 10270 | -6/Waste | Crushed by Compactor (1 part destroyed) 10273 | -6/Waste | Crushed by Compactor (0 parts destroyed, 1 dropped) 10276 | -6/Waste | Spotted C-40 Crusher 10282 | -6/Waste | Crushed by Compactor (1 part destroyed) 10283 | -6/Waste | Crushed by Compactor (1 part destroyed, 1 dropped) 10289 | -6/Waste | Crushed by Compactor (1 part destroyed) 10320 | -6/Waste | Lost 5 parts (2n3u) 10350 | -6/Waste | Spotted C-40 Crusher 10355 | -6/Waste | Spotted C-40 Crusher 10392 | -6/Waste | Discovered new exit (range 16) 10407 | -6/Waste | Identified exit to Factory 10408 | -6/Waste | Entered Factory 10537 | -6/Factory | Core integrity fell below 50% 10605 | -6/Factory | Lost 4 parts (1p1n2u) 10664 | -6/Factory | Lost 4 parts (1n1u2w) 10767 | -6/Factory | Discovered new exit (range 7) 10772 | -6/Factory | Identified exit to Factory 10786 | -6/Factory | Core integrity fell below 20% 10851 | -6/Factory | Entered another Factory area 10851 | -5/Factory | Evolved 2 slots: Propulsion x2 10863 | -5/Factory | Identified exit to Upper Caves 10942 | -5/Factory | Build established: Hacker-Mutant 11441 | -5/Factory | Discovered new exit (range 12) 11516 | -5/Factory | Build established: Hacker-Ninja 11520 | -5/Factory | Identified exit to Factory 11574 | -5/Factory | Cargo convoy interrupted 11824 | -5/Factory | Repaired Adv. Terrain Scanner 11941 | -5/Factory | Repaired Broken Adv. Sensor Array 12338 | -5/Factory | System corruption reached 10% 12349 | -5/Factory | Entered Upper Caves 12555 | -5/Upper Caves | Spotted B-75 Beast 12677 | -5/Upper Caves | Discovered new exit (range 14) 12710 | -5/Upper Caves | Identified exit to Upper Caves 12711 | -5/Upper Caves | Entered another Upper Caves area 12714 | -5/Upper Caves | Discovered exit to Factory (range 10) 12716 | -5/Upper Caves | Encountered a Warlord checkpoint 12756 | -5/Upper Caves | Learned Factory trap positions 12772 | -5/Upper Caves | Learned location of 1 exit from Research 12772 | -5/Upper Caves | Learned Factory emergency access door positions 12772 | -5/Upper Caves | Learned Extension emergency access door positions 13009 | -5/Upper Caves | Discovered new exit (range 7) 13011 | -5/Upper Caves | Identified exit to Zhirov 13016 | -5/Upper Caves | Entered Zhirov 13016 | -5/Zhirov | Discovered new exit (range 3) 13019 | -5/Zhirov | Identified exit to Proximity Caves 13024 | -5/Zhirov | Met Zhirov 13030 | -5/Zhirov | Learned location of Quarantine (-2) 13030 | -5/Zhirov | Learned location of Testing (-3) 13037 | -5/Zhirov | Zhirov requested help retrieving the SGEMP Prototype 13059 | -5/Zhirov | Found Alien Artifact 13061 | -5/Zhirov | Identified Transdimensional Reconstructor 13061 | -5/Zhirov | Warped through subspace 13073 | -5/Zhirov | Found Alien Artifact 13074 | -5/Zhirov | Identified Integrated Reactor 13074 | -5/Zhirov | Installed Integrated Reactor, increased core energy generation (+10) 13143 | -5/Zhirov | Entered Proximity Caves 13146 | -4/Proximity Caves | Spotter reported a threat 13146 | -4/Proximity Caves | Spotter reported a threat 13279 | -4/Proximity Caves | Spotted B-86 Titan 13345 | -4/Proximity Caves | Spotter reported a threat 13353 | -4/Proximity Caves | Build established: Hacker-Scout 13360 | -4/Proximity Caves | Discovered exit to Factory (range 13) 13383 | -4/Proximity Caves | Entered Factory 13383 | -4/Factory | Evolved 2 slots: Utility x2 13384 | -4/Factory | Identified exit to Armory 13385 | -4/Factory | Loaded intel: 114 trap records 13538 | -4/Factory | Identified exit to Research 13633 | -4/Factory | Search patrols dispatched 13679 | -4/Factory | Spotted B-86 Titan 13707 | -4/Factory | Identified exit to Extension 14212 | -4/Factory | Spotted B-86 Titan 14241 | -4/Factory | Entered Extension 14251 | -4/Extension | Lost 9 parts (1p3n4u1w) 14298 | -4/Extension | Rescued a captive Derelict 14388 | -4/Extension | Rescued a captive Derelict 14918 | -4/Extension | Spotted B-86 Titan 15012 | -4/Extension | Spotted B-86 Titan 15015 | -4/Extension | Core integrity fell below 50% 15049 | -4/Extension | Lost 8 parts (2n6u) 15075 | -4/Extension | Core integrity fell below 20% 15108 | -4/Extension | Destroyed by G-67 Veteran with Field Laser Last Messages --------------- 15081_ Field strength at 67. 15082_ Field strength at 56. 15083_ Field strength at 45. 15084_ Field strength at 34. 15085_ Field strength at 23. 15086_ Field strength at 12. 15087_ Stasis field depleted. 15091_ Penetrated by Slug. 15099_ ALERT: Hostiles spotted, dispatching reinforcements to Terminal E011. 15101_ Slammed into G-67 Veteran. 15101_ Destabilizing: Core damaged (-46). 15102_ Slammed into G-67 Veteran. 15104_ Adv. Signal Interpreter broken. 15104_ Destabilizing: Short circuit. 15105_ Slammed into G-67 Veteran. 15105_ Imp. Medium Armor Plating destroyed. 15106_ Slammed into G-67 Veteran. 15107_ Imp. Gyrokinetic Inverter destroyed. 15108_ Slammed into G-67 Veteran. [Achievement: Just Browsing] Map ----- +----------------------------------------------------+ | | | | | | | | | | | | | | | | | | | | | | | | | | | | | | | | | | | | | | | | | | | ?????????????????????????????????????????????? | | ?????????????????????????????????????????????? | | ?????????????????????????????????????????????? | | #############################????????????????? | | g g Y g g@g #????????????????? | | ##### ################# #????????????????? | | ^ ^#???# #??????????????????????????????????? | | #???# #??????????????????????????????????? | | #??? ??????????????????????????????????? | | #??? ??????????????????????????????????? | | #??? ??????????????????????????????????? | | #??? ??????????????????????????????????? | | #??? ??????????????????????????????????? | | ##/#####+#####??????????????????????????????? | | ## #????????????????????????????? | | ## #????????????????????????????? | | ## = #????????????????????????????? | | ## = #????????????????????????????? | | ### === #????????????????????????????? | | ??# #????????????????????????????? | | ??###############????????????????????????????? | | ?????????????????????????????????????????????? | | ?????????????????????????????????????????????? | | ?????????????????????????????????????????????? | | ?????????????????????????????????????????????? | | ?????????????????????????????????????????????? | | ?????????????????????????????????????????????? | | ?????????????????????????????????????????????? | | ?????????????????????????????????????????????? | +----------------------------------------------------+ Best States ------------- Heat Dissipation 43 Energy Generation 28 Energy Capacity 310 Matter Stores 300 Matter Capacity 300 Sight Range 22 Robot Scan Range 16 Terrain Scan Range 20 Terrain Scan Density 210 Armor Coverage 600 Utility Shielding 90 Evasion (%) 63 Targeting Accuracy 12 Melee Accuracy 10 Target Analysis 5 Recoil Reduction 2 Offensive Hacking 36 Defensive Hacking 11 Item Schematics ----------------- Lrg. Storage Unit | -9/Materials | Scanalyzed Hvy. Armor Plating | -9/Materials | Scanalyzed Lrn. Tractor Beam | -8/Materials | Scanalyzed Hcp. Storage Unit | -8/Materials | Scanalyzed Imp. Hacking Suite | -5/Factory | Hacked Adv. Sensor Array | -5/Factory | Scanalyzed Assault Drone Bay | -5/Zhirov | Free Exp. Heat Sink | -5/Zhirov | Free Exp. Optical Array | -5/Zhirov | Free Imp. Arc Thrower | -5/Zhirov | Free Robot Schematics ------------------ None Fabricated ------------ Nothing Alien Tech Used ----------------- Transdimensional Reconstructor Integrated Reactor Achievements -------------- Alien Tech Explorer Just Browsing Subspace Traveler The Science Guy \\IAMDERELICT Challenges ------------ None Game ------ Seed WarpNovaRipper Manual? 0 Play Time 03:35:29 Cumulative 35.2 hours Start 2024.02.18 @ 19:23:22 End 2024.02.19 @ 02:55:03 Sessions 3 Manual Loads 0 Difficulty Rogue Special Mode None Game No. 24 Rogue 24 Adventurer 0 Explorer 0 Win Type - Total 1 Types 1/0/0/0/0/0/0/0/0 Lore% 33 Gallery% 25 Achievement% 27 Wizard Run 0 Options --------- ASCII 0 Keyboard 0 Movement Mouse Keybinds 0 Fullscreen 2 Font 18/SmallcapsGlow Map View 112x50 Tactical HUD 1 Map Filters NONE Filters NONE Steam 1 RUN: d9b1e061-7646-4179-81c7-f19ad3ae9c3e